[Event "Czech Open GM 2020"]
[Site "Pardubice"]
[Date "2020.09.26"]
[Round "7.1"]
[White "Kevlishvili, Robby"]
[Black "Van Foreest, Lucas"]
[Result "1/2-1/2"]
[ECO "C67"]
[WhiteElo "2478"]
[BlackElo "2531"]
[Annotator "ChessBase"]
[PlyCount "120"]
[EventDate "2020.09.21"]
[EventCountry "CZE"]
[SourceTitle "playchess.com"]
[Source "ChessBase"]
[SourceQuality "1"]
[TimeControl "40/5400+30:1800+30"]

1. e4 {[%emt 0:00:11]} Nc6 {[%emt 0:02:47]} 2. Nf3 {[%emt 0:10:07]} e5 {[%emt 0:00:00]} 3. Bb5 {[%emt 0:00:30]} Nf6 {[%emt 0:00:00]} 4. O-O {[%emt 0:00:30]} Nxe4 {[%emt 0:00:00]} 5. Re1 {[%emt 0:00:00]} Nd6 {[%emt 0:00:00]} 6. Nxe5 {[%emt 0:00:00]} Be7 {[%emt 0:00:00]} 7. Bf1 {[%emt 0:00:00]} Nxe5 {[%emt 0:00:00]} 8. Rxe5 {[%emt 0:00:00]} O-O {[%emt 0:00:23]} 9. Nc3 {[%emt 0:00:00]} Ne8 {[%emt 0:00:00]} 10. Nd5 {[%emt 0:00:00]} Bd6 {[%emt 0:00:00]} 11. Re1 {[%emt 0:00:00]} c6 {[%emt 0:00:00]} 12. Ne3 {[%emt 0:00:00]} Be7 {[%emt 0:00:00]} 13. c4 {[%emt 0:00:00]} Nc7 {[%emt 0:00:00]} 14. d4 {[%emt 0:00:00]} d5 {[%emt 0:00:00]} 15. cxd5 {[%emt 0:00:00]} Bb4 {[%emt 0:00:00]} 16. Bd2 {[%emt 0:00:00]} Bxd2 {[%emt 0:00:00]} 17. Qxd2 {[%emt 0:00:00]} Nxd5 {[%emt 0:00:00]} 18. Nxd5 {[%emt 0:00:00]} Qxd5 {[%emt 0:00:00]} 19. Re5 {[%emt 0:00:00]} Qd6 {[%emt 0:00:00]} 20. Bc4 {[%emt 0:00:00]} Bd7 {[%emt 0:00:00]} 21. Rae1 {[%emt 0:00:00]} b5 {[%emt 0:00:00]} 22. Bb3 {[%emt 0:00:00]} a5 {[%emt 0:00:00]} 23. a3 {[%emt 0:00:00]} a4 {[%emt 0:00:00]} 24. Ba2 {[%emt 0:00:00]} Rae8 {[%emt 0:00:00]} 25. Qc3 {[%emt 0:00:00]} Rxe5 {[%emt 0:00:00]} 26. dxe5 {[%emt 0:00:00]} Qe7 {[%emt 0:00:00]} 27. Rd1 {[%emt 0:00:00]} Bf5 {[%emt 0:00:00]} 28. Rd6 {[%emt 0:00:00]} Rd8 {[%emt 0:00:00]} 29. Qd2 {[%emt 0:00:00]} Rxd6 {[%emt 0:00:00]} 30. exd6 {[%emt 0:00:02]} Qe5 {[%emt 0:00:00]} 31. h3 {[%emt 0:00:22]} Bd7 {[%emt 0:00:00]} 32. Qa5 {[%emt 0:00:25]} Be8 {[%emt 0:00:00]} 33. Qd8 {[%emt 0:00:27]} Qe1+ {[%emt 0:00:00]} 34. Kh2 {[%emt 0:00:06]} Qe5+ {[%emt 0:00:00]} 35. Kg1 {[%emt 0:00:09]} Qe1+ {[%emt 0:00:00]} 36. Kh2 {[%emt 0:00:09]} Qe5+ {[%emt 0:00:00]} 37. g3 {[%emt 0:00:16]} Qe2 {[%emt 0:00:56]} 38. Kg2 {[%emt 0:00:11]} Qe4+ {[%emt 0:00:02]} 39. Kg1 {[%emt 0:00:05]} Qe1+ {[%emt 0:00:05]} 40. Kg2 {[%emt 0:00:05]} Qe4+ {[%emt 0:00:09]} 41. Kg1 {[%emt 0:30:07]} Qe1+ {[%emt 0:30:15]} 42. Kg2 {[%emt 0:00:05]} Qe4+ {[%emt 0:00:06]} 43. Kf1 {[%emt 0:00:22]} Qh1+ {[%emt 0:00:06]} 44. Ke2 {[%emt 0:00:07]} Qe4+ {[%emt 0:00:03]} 45. Kf1 {[%emt 0:00:13]} Qh1+ {[%emt 0:00:04]} 46. Ke2 {[%emt 0:00:05]} Qe4+ {[%emt 0:00:02]} 47. Kd2 {[%emt 0:00:18]} Qd4+ {[%emt 0:00:03]} 48. Ke1 {[%emt 0:00:23]} Qe4+ {[%emt 0:00:05]} 49. Kd2 {[%emt 0:00:06]} Qd4+ {[%emt 0:00:02]} 50. Ke1 {[%emt 0:00:08]} Qe4+ {[%emt 0:00:05]} 51. Kd2 {[%emt 0:00:13]} Qd4+ {[%emt 0:00:04]} 52. Ke1 {[%emt 0:00:08]} Qe4+ {[%emt 0:00:54]} 53. Kd2 {[%emt 0:01:09]} Qd4+ {[%emt 0:00:05]} 54. Kc1 {[%emt 0:01:00]} Qe4 {[%emt 0:00:07]} 55. Qe7 {[%emt 0:00:24]} Qxe7 {[%emt 0:00:06]} 56. dxe7 {[%emt 0:00:05]} g5 {[%emt 0:00:06]} 57. Kd2 {[%emt 0:00:16]} Kg7 {[%emt 0:00:04]} 58. Ke3 {[%emt 0:00:11]} Kf6 {[%emt 0:00:04]} 59. Kd4 {[%emt 0:00:06]} Kxe7 {[%emt 0:00:06]} 60. Kc5 {[%emt 0:00:11]} Kd7 {[%emt 0:00:07]} 1/2-1/2

[Event "Czech Open GM 2020"]
[Site "Pardubice"]
[Date "2020.09.26"]
[Round "7.2"]
[White "Jarmula, Lukasz"]
[Black "Vogel, Roven"]
[Result "1/2-1/2"]
[ECO "D31"]
[WhiteElo "2444"]
[BlackElo "2456"]
[Annotator "ChessBase"]
[PlyCount "54"]
[EventDate "2020.09.21"]
[EventCountry "CZE"]
[SourceTitle "playchess.com"]
[Source "ChessBase"]
[SourceQuality "1"]
[TimeControl "40/5400+30:1800+30"]

1. d4 {[%emt 0:00:00]} d5 {[%emt 0:00:00]} 2. c4 {[%emt 0:00:00]} e6 {[%emt 0:00:00]} 3. Nc3 {[%emt 0:00:00]} Be7 {[%emt 0:00:01]} 4. cxd5 {[%emt 0:00:00]} exd5 {[%emt 0:00:09]} 5. Bf4 {[%emt 0:00:00]} c6 {[%emt 0:00:29]} 6. e3 {[%emt 0:00:18]} Bf5 {[%emt 0:00:13]} 7. Nge2 {[%emt 0:00:09]} Nd7 {[%emt 0:03:44]} 8. Ng3 {[%emt 0:00:24]} Be6 {[%emt 0:03:26]} 9. Nh5 {[%emt 0:00:55]} Bf8 {[%emt 0:01:26]} 10. Bg3 {[%emt 0:00:28]} Ngf6 {[%emt 0:01:16]} 11. Bh4 {[%emt 0:06:17]} Qb6 {[%emt 0:03:03]} 12. Nxf6+ {[%emt 0:01:25]} Nxf6 {[%emt 0:00:24]} 13. Qc2 {[%emt 0:00:11]} Be7 {[%emt 0:06:30]} 14. Bd3 {[%emt 0:00:33]} Qd8 {[%emt 0:01:20]} 15. O-O {[%emt 0:02:04]} Nh5 {[%emt 0:04:11]} 16. Bxe7 {[%emt 0:05:01]} Qxe7 {[%emt 0:00:09]} 17. Rab1 {[%emt 0:02:22]} g6 {[%emt 0:05:12]} 18. b4 {[%emt 0:02:30]} O-O {[%emt 0:01:25]} 19. b5 {[%emt 0:02:26]} c5 {[%emt 0:02:10]} 20. dxc5 {[%emt 0:02:48]} Qxc5 {[%emt 0:00:07]} 21. Ne2 {[%emt 0:03:25]} Qxc2 {[%emt 0:02:13]} 22. Bxc2 {[%emt 0:00:18]} Rfc8 {[%emt 0:03:54]} 23. Bb3 {[%emt 0:04:54]} Rc5 {[%emt 0:00:41]} 24. Nd4 {[%emt 0:01:54]} Bd7 {[%emt 0:04:21]} 25. a4 {[%emt 0:08:08]} Nf6 {[%emt 0:08:00]} 26. Bc2 {[%emt 0:06:38]} Rac8 {[%emt 0:02:47]} 27. Bd3 {[%emt 0:00:21]} Ne4 {[%emt 0:01:10]} 1/2-1/2

[Event "Czech Open GM 2020"]
[Site "Pardubice"]
[Date "2020.09.26"]
[Round "7.3"]
[White "Plat, Vojtech"]
[Black "Szpar, Milosz"]
[Result "1/2-1/2"]
[ECO "B22"]
[WhiteElo "2566"]
[BlackElo "2397"]
[Annotator "ChessBase"]
[PlyCount "119"]
[EventDate "2020.09.21"]
[EventCountry "CZE"]
[SourceTitle "playchess.com"]
[Source "ChessBase"]
[SourceQuality "1"]
[TimeControl "40/5400+30:1800+30"]

1. e4 {[%emt 0:05:48]} c5 {[%emt 0:00:00]} 2. Nf3 {[%emt 0:00:10]} Nc6 {[%emt 0:00:04]} 3. c3 {[%emt 0:00:07]} d5 {[%emt 0:01:25]} 4. exd5 {[%emt 0:00:08]} Qxd5 {[%emt 0:00:07]} 5. d4 {[%emt 0:00:02]} Bg4 {[%emt 0:00:44]} 6. Be2 {[%emt 0:00:03]} cxd4 {[%emt 0:01:39]} 7. cxd4 {[%emt 0:00:42]} e6 {[%emt 0:00:15]} 8. Nc3 {[%emt 0:00:02]} Qa5 {[%emt 0:01:02]} 9. O-O {[%emt 0:00:06]} Nf6 {[%emt 0:00:24]} 10. h3 {[%emt 0:00:04]} Bh5 {[%emt 0:00:36]} 11. a3 {[%emt 0:00:04]} Bd6 {[%emt 0:01:44]} 12. Be3 {[%emt 0:01:16]} O-O {[%emt 0:00:49]} 13. Qb3 {[%emt 0:01:04]} Ne7 {[%emt 0:03:46]} 14. Bd2 {[%emt 0:24:22]} Ned5 {[%emt 0:13:38]} 15. Qxb7 {[%emt 0:04:56]} Nxc3 {[%emt 0:14:30]} 16. bxc3 {[%emt 0:01:30]} Rab8 {[%emt 0:05:43]} 17. Qc6 {[%emt 0:04:36]} Rb6 {[%emt 0:03:45]} 18. Qc4 {[%emt 0:04:05]} Rb2 {[%emt 0:23:00]} 19. Qd3 {[%emt 0:03:04]} Bg6 {[%emt 0:00:00]} 20. Qa6 {[%emt 0:01:55]} Qxa6 {[%emt 0:00:00]} 21. Bxa6 {[%emt 0:11:58]} Ne4 {[%emt 0:00:00]} 22. Be1 {[%emt 0:09:38]} Rb6 {[%emt 0:00:00]} 23. Be2 {[%emt 0:00:24]} Rb3 {[%emt 0:00:27]} 24. c4 {[%emt 0:00:00]} Rxa3 {[%emt 0:01:38]} 25. Ba5 {[%emt 0:00:00]} Nc3 {[%emt 0:02:04]} 26. Bxc3 {[%emt 0:00:00]} Rxc3 {[%emt 0:00:07]} 27. Rxa7 {[%emt 0:00:00]} Rc2 {[%emt 0:02:53]} 28. Ra6 {[%emt 0:03:57]} Be7 {[%emt 0:03:03]} 29. Re1 {[%emt 0:00:45]} Bb4 {[%emt 0:01:37]} 30. Rb1 {[%emt 0:00:04]} Be7 {[%emt 0:00:54]} 31. Rb7 {[%emt 0:01:14]} Bf6 {[%emt 0:01:04]} 32. Bf1 {[%emt 0:00:14]} Rc1 {[%emt 0:04:33]} 33. Rba7 {[%emt 0:01:07]} Be4 {[%emt 0:04:06]} 34. Ne5 {[%emt 0:01:03]} Rd1 {[%emt 0:02:04]} 35. f3 {[%emt 0:05:50]} Bb1 {[%emt 0:03:04]} 36. Rd6 {[%emt 0:04:19]} Bg5 {[%emt 0:01:10]} 37. Kf2 {[%emt 0:02:54]} Rd2+ {[%emt 0:00:24]} 38. Be2 {[%emt 0:02:21]} f6 {[%emt 0:00:31]} 39. Nd7 {[%emt 0:00:10]} Bd3 {[%emt 0:03:31]} 40. Rxe6 {[%emt 0:00:06]} Rd8 {[%emt 0:01:16]} 41. Nb6 {[%emt 0:39:36]} Bh4+ {[%emt 0:14:25]} 42. g3 {[%emt 0:00:00]} Bxe2 {[%emt 0:00:18]} 43. Rxe2 {[%emt 0:00:00]} Bxg3+ {[%emt 0:00:55]} 44. Kf1 {[%emt 0:00:00]} Rxe2 {[%emt 0:02:42]} 45. Kxe2 {[%emt 0:00:00]} Rxd4 {[%emt 0:00:07]} 46. c5 {[%emt 0:00:00]} Bf4 {[%emt 0:01:50]} 47. Ra2 {[%emt 0:00:00]} Kf7 {[%emt 0:01:21]} 48. Ra7+ {[%emt 0:00:00]} Kg6 {[%emt 0:01:25]} 49. Ra4 {[%emt 0:00:00]} Rxa4 {[%emt 0:01:38]} 50. Nxa4 {[%emt 0:00:00]} Kf5 {[%emt 0:02:26]} 51. Kd3 {[%emt 0:00:00]} g5 {[%emt 0:01:27]} 52. c6 {[%emt 0:00:00]} h5 {[%emt 0:01:37]} 53. Nc5 {[%emt 0:00:00]} g4 {[%emt 0:01:21]} 54. fxg4+ {[%emt 0:00:00]} hxg4 {[%emt 0:00:07]} 55. hxg4+ {[%emt 0:00:00]} Kxg4 {[%emt 0:00:06]} 56. Ke4 {[%emt 0:00:00]} f5+ {[%emt 0:01:53]} 57. Kd5 {[%emt 0:00:00]} Bc7 {[%emt 0:02:03]} 58. Na6 {[%emt 0:00:00]} Ba5 {[%emt 0:00:46]} 59. Nc5 {[%emt 0:00:00]} f4 {[%emt 0:00:29]} 60. Nd3 {[%emt 0:00:00]} 1/2-1/2

[Event "Czech Open GM 2020"]
[Site "Pardubice"]
[Date "2020.09.26"]
[Round "7.4"]
[White "Noe, Christopher"]
[Black "Sorensen, Hampus"]
[Result "1-0"]
[ECO "D45"]
[WhiteElo "2519"]
[BlackElo "2361"]
[Annotator "ChessBase"]
[PlyCount "85"]
[EventDate "2020.09.21"]
[EventCountry "CZE"]
[SourceTitle "playchess.com"]
[Source "ChessBase"]
[SourceQuality "1"]
[TimeControl "40/5400+30:1800+30"]

1. d4 {[%emt 0:00:00]} d5 {[%emt 0:00:00]} 2. c4 {[%emt 0:00:00]} c6 {[%emt 0:00:03]} 3. Nc3 {[%emt 0:01:36]} Nf6 {[%emt 0:00:27]} 4. Nf3 {[%emt 0:01:59]} e6 {[%emt 0:00:13]} 5. e3 {[%emt 0:00:06]} a6 {[%emt 0:00:12]} 6. Qc2 {[%emt 0:03:15]} c5 {[%emt 0:01:32]} 7. cxd5 {[%emt 0:00:15]} exd5 {[%emt 0:00:34]} 8. dxc5 {[%emt 0:00:12]} Bxc5 {[%emt 0:04:20]} 9. Be2 {[%emt 0:00:50]} O-O {[%emt 0:02:11]} 10. O-O {[%emt 0:00:05]} Nc6 {[%emt 0:03:01]} 11. Rd1 {[%emt 0:03:04]} Bd6 {[%emt 0:01:03]} 12. b3 {[%emt 0:03:22]} Be6 {[%emt 0:13:25]} 13. Bb2 {[%emt 0:00:54]} Qc7 {[%emt 0:12:19]} 14. h3 {[%emt 0:09:27]} Rad8 {[%emt 0:03:17]} 15. Rac1 {[%emt 0:08:48]} Qb8 {[%emt 0:01:26]} 16. Qb1 {[%emt 0:04:36]} Ne5 {[%emt 0:03:13]} 17. Nd4 {[%emt 0:01:02]} Rfe8 {[%emt 0:08:18]} 18. Qc2 {[%emt 0:18:33]} Rc8 {[%emt 0:06:28]} 19. Qb1 {[%emt 0:00:06]} Rcd8 {[%emt 0:01:10]} 20. Nxe6 {[%emt 0:06:41]} fxe6 {[%emt 0:01:44]} 21. e4 {[%emt 0:03:22]} Ng6 {[%emt 0:09:33]} 22. exd5 {[%emt 0:01:46]} exd5 {[%emt 0:00:11]} 23. Bf3 {[%emt 0:02:11]} Bf4 {[%emt 0:06:51]} 24. Nxd5 {[%emt 0:00:40]} Bxc1 {[%emt 0:05:48]} 25. Nxf6+ {[%emt 0:04:07]} gxf6 {[%emt 0:00:30]} 26. Rxc1 {[%emt 0:00:02]} Ne5 {[%emt 0:03:58]} 27. Qf5 {[%emt 0:05:29]} Qd6 {[%emt 0:06:52]} 28. Be4 {[%emt 0:02:31]} Rd7 {[%emt 0:02:08]} 29. Rc3 {[%emt 0:02:30]} Qe6 {[%emt 0:01:48]} 30. Qh5 {[%emt 0:02:52]} Ng6 {[%emt 0:00:48]} 31. Re3 {[%emt 0:02:31]} Qxe4 {[%emt 0:01:25]} 32. Rxe4 {[%emt 0:00:06]} Rxe4 {[%emt 0:00:02]} 33. Bxf6 {[%emt 0:00:25]} Re6 {[%emt 0:00:50]} 34. Bc3 {[%emt 0:01:48]} Rc6 {[%emt 0:00:27]} 35. Qf3 {[%emt 0:00:51]} Rf7 {[%emt 0:00:09]} 36. Qg3 {[%emt 0:00:15]} Rfc7 {[%emt 0:00:22]} 37. Bd4 {[%emt 0:00:47]} Rd7 {[%emt 0:00:46]} 38. Be3 {[%emt 0:01:12]} Kf7 {[%emt 0:00:31]} 39. h4 {[%emt 0:00:27]} Rd1+ {[%emt 0:00:29]} 40. Kh2 {[%emt 0:00:05]} Rd5 {[%emt 0:00:16]} 41. Qf3+ {[%emt 0:30:55]} Ke6 {[%emt 0:30:21]} 42. h5 {[%emt 0:02:48]} Ne5 {[%emt 0:01:07]} 43. Qe4 {[%emt 0:00:09]} 1-0

[Event "Czech Open GM 2020"]
[Site "Pardubice"]
[Date "2020.09.26"]
[Round "7.5"]
[White "Jurcik, Marian"]
[Black "Mendonca, Leon Luke"]
[Result "1/2-1/2"]
[ECO "B25"]
[WhiteElo "2426"]
[BlackElo "2490"]
[Annotator "ChessBase"]
[PlyCount "27"]
[EventDate "2020.09.21"]
[EventCountry "CZE"]
[SourceTitle "playchess.com"]
[Source "ChessBase"]
[SourceQuality "1"]
[TimeControl "40/5400+30:1800+30"]

1. e4 {[%emt 0:00:00]} c5 {[%emt 0:00:20]} 2. Nc3 {[%emt 0:00:04]} d6 {[%emt 0:01:02]} 3. Nge2 {[%emt 0:01:54]} Nf6 {[%emt 0:00:54]} 4. g3 {[%emt 0:00:52]} Nc6 {[%emt 0:00:16]} 5. Bg2 {[%emt 0:00:41]} g6 {[%emt 0:00:18]} 6. O-O {[%emt 0:02:02]} Bg7 {[%emt 0:00:07]} 7. d3 {[%emt 0:00:06]} O-O {[%emt 0:00:44]} 8. Bg5 {[%emt 0:00:08]} Nd4 {[%emt 0:09:43]} 9. Qd2 {[%emt 0:08:48]} Bg4 {[%emt 0:11:37]} 10. Nxd4 {[%emt 0:29:44]} cxd4 {[%emt 0:00:12]} 11. Nb5 {[%emt 0:06:41]} Qb6 {[%emt 0:06:14]} 12. a4 {[%emt 0:01:15]} Rac8 {[%emt 0:02:50]} 13. c4 {[%emt 0:01:25]} dxc3 {[%emt 0:09:57]} 14. Nxc3 {[%emt 0:02:00]} 1/2-1/2

[Event "Czech Open GM 2020"]
[Site "Pardubice"]
[Date "2020.09.26"]
[Round "7.6"]
[White "Golubka, Petro"]
[Black "Zwardon, Vojtech"]
[Result "1-0"]
[ECO "A36"]
[WhiteElo "2488"]
[BlackElo "2455"]
[Annotator "ChessBase"]
[PlyCount "89"]
[EventDate "2020.09.21"]
[EventCountry "CZE"]
[SourceTitle "playchess.com"]
[Source "ChessBase"]
[SourceQuality "1"]
[TimeControl "40/5400+30:1800+30"]

1. c4 {[%emt 0:06:18]} c5 {[%emt 0:00:00]} 2. Nc3 {[%emt 0:00:06]} g6 {[%emt 0:00:00]} 3. g3 {[%emt 0:00:03]} Bg7 {[%emt 0:00:00]} 4. Bg2 {[%emt 0:00:05]} Nc6 {[%emt 0:00:00]} 5. d3 {[%emt 0:00:07]} d6 {[%emt 0:00:00]} 6. Bd2 {[%emt 0:00:17]} Qd7 {[%emt 0:02:36]} 7. Nf3 {[%emt 0:05:02]} b6 {[%emt 0:00:47]} 8. O-O {[%emt 0:00:26]} Bb7 {[%emt 0:00:03]} 9. a3 {[%emt 0:02:14]} e6 {[%emt 0:02:18]} 10. Rb1 {[%emt 0:01:29]} Nge7 {[%emt 0:02:14]} 11. Qc1 {[%emt 0:03:14]} h6 {[%emt 0:01:32]} 12. b4 {[%emt 0:02:24]} Rd8 {[%emt 0:00:15]} 13. Ne4 {[%emt 0:02:32]} f5 {[%emt 0:07:36]} 14. Nc3 {[%emt 0:01:57]} Nd4 {[%emt 0:00:38]} 15. Ne1 {[%emt 0:00:25]} g5 {[%emt 0:03:57]} 16. e3 {[%emt 0:03:21]} Bxg2 {[%emt 0:00:07]} 17. Kxg2 {[%emt 0:00:09]} Qb7+ {[%emt 0:00:03]} 18. Kg1 {[%emt 0:01:09]} Nf3+ {[%emt 0:00:19]} 19. Nxf3 {[%emt 0:00:11]} Qxf3 {[%emt 0:00:03]} 20. Qd1 {[%emt 0:00:28]} Qxd1 {[%emt 0:08:01]} 21. Rfxd1 {[%emt 0:01:46]} Nc6 {[%emt 0:02:32]} 22. Be1 {[%emt 0:00:48]} h5 {[%emt 0:01:15]} 23. Ne2 {[%emt 0:02:33]} Ne5 {[%emt 0:01:17]} 24. Bc3 {[%emt 0:02:33]} h4 {[%emt 0:00:40]} 25. Bxe5 {[%emt 0:09:00]} Bxe5 {[%emt 0:00:18]} 26. bxc5 dxc5 {[%emt 0:00:12]} 27. d4 {[%emt 0:01:03]} Bd6 {[%emt 0:02:37]} 28. d5 {[%emt 0:08:02]} e5 {[%emt 0:00:00]} 29. e4 {[%emt 0:03:17]} f4 {[%emt 0:10:40]} 30. g4 {[%emt 0:01:32]} f3 {[%emt 0:00:36]} 31. Nc3 {[%emt 0:02:42]} h3 {[%emt 0:00:06]} 32. Rd3 {[%emt 0:06:01]} Rf8 {[%emt 0:00:43]} 33. Kh1 {[%emt 0:04:50]} Rf4 {[%emt 0:02:13]} 34. Rg1 {[%emt 0:00:57]} a6 {[%emt 0:01:45]} 35. Rg3 {[%emt 0:04:20]} b5 {[%emt 0:00:47]} 36. cxb5 {[%emt 0:00:30]} axb5 {[%emt 0:00:29]} 37. Rxh3 {[%emt 0:01:52]} b4 {[%emt 0:00:15]} 38. axb4 {[%emt 0:00:24]} cxb4 {[%emt 0:00:31]} 39. Nb5 {[%emt 0:00:18]} Bf8 {[%emt 0:01:31]} 40. Rh7 {[%emt 0:07:55]} Rc8 {[%emt 0:00:18]} 41. Nc7+ {[%emt 0:31:12]} Rxc7 {[%emt 0:32:11]} 42. Rxc7 {[%emt 0:00:04]} Bd6 {[%emt 0:00:04]} 43. Rc4 {[%emt 0:01:17]} Rf7 {[%emt 0:01:31]} 44. h3 {[%emt 0:00:16]} Rb7 {[%emt 0:00:06]} 45. Rb3 {[%emt 0:00:02]} 1-0

[Event "Czech Open GM 2020"]
[Site "Pardubice"]
[Date "2020.09.26"]
[Round "7.7"]
[White "Vrolijk, Liam"]
[Black "Petr, Martin"]
[Result "1/2-1/2"]
[ECO "D37"]
[WhiteElo "2481"]
[BlackElo "2484"]
[Annotator "ChessBase"]
[PlyCount "70"]
[EventDate "2020.09.21"]
[EventCountry "CZE"]
[SourceTitle "playchess.com"]
[Source "ChessBase"]
[SourceQuality "1"]
[TimeControl "40/5400+30:1800+30"]

1. d4 {[%emt 0:02:17]} d5 {[%emt 0:00:00]} 2. c4 {[%emt 0:00:11]} e6 {[%emt 0:00:00]} 3. Nf3 {[%emt 0:00:11]} a6 {[%emt 0:00:05]} 4. cxd5 {[%emt 0:01:24]} exd5 {[%emt 0:01:30]} 5. Nc3 {[%emt 0:00:07]} Nf6 {[%emt 0:00:08]} 6. Bg5 {[%emt 0:00:07]} Be6 {[%emt 0:00:06]} 7. e3 {[%emt 0:00:09]} Nbd7 {[%emt 0:00:22]} 8. h3 {[%emt 0:00:07]} Bd6 {[%emt 0:00:41]} 9. Bd3 {[%emt 0:00:17]} c6 {[%emt 0:00:10]} 10. Bf4 {[%emt 0:01:39]} Qc7 {[%emt 0:00:18]} 11. Bxd6 {[%emt 0:01:02]} Qxd6 {[%emt 0:00:03]} 12. O-O {[%emt 0:00:17]} O-O {[%emt 0:00:07]} 13. Qb3 {[%emt 0:01:04]} Rfb8 {[%emt 0:01:52]} 14. a4 {[%emt 0:01:57]} a5 {[%emt 0:00:06]} 15. Qa3 {[%emt 0:03:06]} Ne8 {[%emt 0:00:36]} 16. Rfb1 {[%emt 0:03:21]} Qxa3 {[%emt 0:09:41]} 17. bxa3 {[%emt 0:11:56]} Nd6 {[%emt 0:01:21]} 18. Rb2 {[%emt 0:01:17]} Rc8 {[%emt 0:23:59]} 19. Ne5 {[%emt 0:06:16]} Rc7 {[%emt 0:02:07]} 20. Nxd7 {[%emt 0:15:08]} Bxd7 {[%emt 0:08:25]} 21. Rc1 {[%emt 0:00:00]} Rac8 {[%emt 0:01:24]} 22. Rb6 {[%emt 0:00:00]} Be6 {[%emt 0:03:55]} 23. Nb5 {[%emt 0:13:08]} Nxb5 {[%emt 0:00:10]} 24. axb5 {[%emt 0:00:06]} Kf8 {[%emt 0:00:03]} 25. Rc5 {[%emt 0:02:34]} cxb5 {[%emt 0:01:27]} 26. Rbxb5 {[%emt 0:01:21]} b6 {[%emt 0:00:05]} 27. Rxb6 {[%emt 0:00:33]} Rxc5 {[%emt 0:00:16]} 28. dxc5 {[%emt 0:00:06]} Rxc5 {[%emt 0:00:06]} 29. a4 {[%emt 0:02:30]} Bd7 {[%emt 0:03:36]} 30. Bb5 {[%emt 0:00:07]} Bxb5 {[%emt 0:03:23]} 31. axb5 {[%emt 0:00:08]} h5 {[%emt 0:03:49]} 32. Rb7 {[%emt 0:01:14]} a4 {[%emt 0:02:34]} 33. b6 {[%emt 0:00:22]} Rb5 {[%emt 0:00:04]} 34. Ra7 {[%emt 0:00:13]} Rxb6 {[%emt 0:00:05]} 35. Rxa4 {[%emt 0:00:05]} Ke7 {[%emt 0:00:26]} 1/2-1/2

[Event "Czech Open GM 2020"]
[Site "Pardubice"]
[Date "2020.09.26"]
[Round "7.8"]
[White "Stocek, Jiri"]
[Black "Csiki, Endre"]
[Result "1-0"]
[ECO "D85"]
[WhiteElo "2595"]
[BlackElo "2276"]
[Annotator "ChessBase"]
[PlyCount "46"]
[EventDate "2020.09.21"]
[EventCountry "CZE"]
[SourceTitle "playchess.com"]
[Source "ChessBase"]
[SourceQuality "1"]
[TimeControl "40/5400+30:1800+30"]

1. d4 {[%emt 0:00:00]} Nf6 {[%emt 0:03:50]} 2. c4 {[%emt 0:00:00]} g6 {[%emt 0:00:38]} 3. Nc3 {[%emt 0:00:13]} d5 {[%emt 0:00:05]} 4. cxd5 {[%emt 0:01:02]} Nxd5 {[%emt 0:00:32]} 5. e4 {[%emt 0:00:06]} Nxc3 {[%emt 0:00:02]} 6. bxc3 {[%emt 0:00:06]} Bg7 {[%emt 0:00:01]} 7. Nf3 {[%emt 0:00:27]} c5 {[%emt 0:00:06]} 8. Be3 {[%emt 0:00:14]} Qa5 {[%emt 0:00:24]} 9. Nd2 {[%emt 0:01:59]} Bd7 {[%emt 0:00:22]} 10. Rc1 {[%emt 0:01:41]} cxd4 {[%emt 0:05:02]} 11. Nc4 {[%emt 0:01:04]} Qa4 {[%emt 0:06:35]} 12. Qxa4 {[%emt 0:02:17]} Bxa4 {[%emt 0:00:04]} 13. cxd4 {[%emt 0:00:06]} O-O {[%emt 0:01:40]} 14. Be2 {[%emt 0:04:56]} Bb5 {[%emt 0:16:48]} 15. d5 {[%emt 0:08:03]} Rc8 {[%emt 0:15:30]} 16. Kd2 {[%emt 0:01:32]} Nd7 {[%emt 0:01:50]} 17. Na5 {[%emt 0:01:21]} Bxe2 {[%emt 0:00:33]} 18. Kxe2 {[%emt 0:00:09]} Bb2 {[%emt 0:01:29]} 19. Rxc8+ {[%emt 0:02:01]} Rxc8 {[%emt 0:00:08]} 20. Rb1 {[%emt 0:00:09]} Bf6 {[%emt 0:02:09]} 21. Rxb7 {[%emt 0:03:01]} Ne5 {[%emt 0:09:17]} 22. f4 {[%emt 0:02:34]} Ng4 {[%emt 0:00:05]} 23. Nc6 {[%emt 0:05:10]} e5 {[%emt 0:01:55]} 1-0